bitfinex-derivatives/quotes_SOLF0:USTF0_20250127
["timestamp","ask_amount","ask_price","bid_price","bid_amount"]
[1737982882878,26.0558264,230.05,229.99,0.02759586]
[1737982883280,4.3496,230.0,229.99,0.02759586]
[1737982883483,4.3496,230.0,229.79,26.0558264]
[1737982883981,26.0558264,230.01,229.79,26.0558264]
[1737982884185,26.0558264,229.97,229.79,26.0558264]
[1737982884386,4.3506,229.95,229.79,26.0558264]
[1737982884588,26.0558264,229.97,229.79,26.0558264]
[1737982884589,26.0558264,230.01,229.79,26.0558264]
[1737982884789,0.0319052,229.89,229.85,0.03046399]
[1737982885185,26.0558264,229.97,229.79,30.0158264]
[1737982885386,26.0558264,229.93,229.77,1.451]
[1737982885584,30.4075264,229.89,229.73,4.3546]
[1737982885790,26.0558264,229.8,229.58,1.4998]
[1737982885989,26.0558264,229.8,229.59,1.4783]
[1737982886185,26.0558264,229.76,229.59,1.4783]
[1737982886390,26.0558264,229.76,229.67,0.02928409]
[1737982887090,26.0558264,229.8,229.67,0.02928409]
[1737982887291,4.3539,229.78,229.67,0.02928409]
[1737982887586,26.0558264,229.76,229.59,1.4783]
[1737982887787,26.0558264,229.8,229.7,0.0306214]
[1737982888085,30.4086264,229.84,229.69,4.3554]
[1737982888290,26.0558264,229.89,229.73,0.02956471]
[1737982888685,26.0558264,229.93,229.74,26.0558264]
[1737982888886,26.0558264,229.97,229.79,0.02886037]
[1737982889092,26.0558264,229.93,229.8,4.3533]
[1737982889290,26.0558264,229.88,229.75,4.6993]
[1737982889488,26.0558264,229.88,229.84,0.03134488]
[1737982889693,26.0558264,229.88,229.66,1.4771]
[1737982890294,0.512,229.95,229.73,26.0558264]
[1737982890493,26.0558264,229.92,229.74,3.257]
[1737982890892,0.03123928,229.86,229.82,0.03146874]
[1737982893697,26.0558264,230.01,229.82,0.03146874]
[1737982893991,26.0558264,230.01,229.81,3.3567]
[1737982894393,26.0558264,230.05,229.84,26.0558264]
[1737982894594,26.0558264,230.1,229.89,26.0558264]
[1737982894794,26.0558264,230.1,229.95,4.3505]
[1737982894992,26.0558264,230.06,229.97,0.03204486]
[1737982895999,4.3495,230.01,229.97,0.03204486]
[1737982896198,26.0558264,230.02,229.97,0.03204486]
[1737982896697,4.3496,230.01,229.97,0.03204486]
[1737982896894,26.0558264,229.98,229.81,3.3567]
[1737982897097,26.0558264,229.94,229.81,3.3567]
[1737982897401,26.0558264,230.02,229.81,3.3567]
[1737982897700,26.0558264,230.02,229.84,26.0558264]
[1737982897895,26.0558264,230.02,229.87,4.3519]
[1737982898099,0.03008974,229.95,229.91,0.02831307]
[1737982898399,26.0558264,229.94,229.72,26.0558264]
[1737982898796,26.0558264,229.94,229.82,4.353]
[1737982899002,4.3503,229.97,229.76,26.0558264]
[1737982899202,26.0558264,229.98,229.76,26.0558264]
[1737982899404,26.0558264,229.98,229.72,27.4357264]
[1737982899600,0.02791569,229.89,229.85,0.02754857]
[1737982899796,26.0558264,229.93,229.72,27.4357264]
[1737982900098,0.0321926,229.89,229.85,0.03183492]
[1737982900302,0.0321926,229.89,229.77,4.3539]
[1737982900499,26.0558264,229.88,229.85,0.03111367]
[1737982900804,26.0558264,229.88,229.67,26.0558264]
[1737982901104,3.94,229.96,229.82,4.353]
[1737982901105,30.4063264,229.96,229.82,4.353]
[1737982901298,26.0558264,230.01,229.79,26.0558264]
[1737982901497,26.0558264,230.05,229.8,4.5352]
[1737982901702,26.0558264,230.1,229.87,26.0558264]
[1737982901903,26.0558264,230.1,229.91,26.0558264]
[1737982902203,0.02801397,230.01,229.92,1.4524]
[1737982902404,0.02801397,230.01,229.98,0.0308288]
[1737982902906,0.02801397,230.01,229.99,4.3498]
[1737982903501,26.3359264,230.18,230.02,4.3492]
[1737982903807,0.86884747,230.19,230.03,26.0558264]
[1737982904101,26.0558264,230.14,229.99,1.767]
[1737982904300,26.0558264,230.14,229.96,1.385]
[1737982904704,0.03145021,230.07,230.02,0.0306486]
[1737982907003,26.5364264,230.22,230.03,26.0558264]
[1737982907201,0.2801,230.27,230.03,26.0558264]
[1737982907503,26.0558264,230.18,230.02,0.0306486]
[1737982907802,0.59361,230.13,230.07,26.0558264]
[1737982908004,0.7611,230.33,230.11,26.0558264]
[1737982908902,0.2805,230.33,230.11,26.0558264]
[1737982909103,0.2805,230.33,230.15,26.0558264]
[1737982909308,74.58,230.41,230.26,4.3447]
[1737982909507,26.0558264,230.37,230.22,0.03320509]
[1737982909708,26.0558264,230.37,230.16,1.7547]
[1737982909912,26.0558264,230.37,230.27,0.02887778]
[1737982910210,30.3985264,230.37,230.27,0.02887778]
[1737982910406,26.0558264,230.37,230.27,0.02887778]
[1737982911103,26.0558264,230.29,230.27,0.02887778]
[1737982911308,26.0558264,230.25,230.16,1.7547]
[1737982911504,26.0558264,230.25,230.01,26.0558264]
[1737982911811,4.3463,230.18,230.05,4.3486]
[1737982912107,26.0558264,230.21,230.02,1.6349]
[1737982912310,26.0558264,230.25,230.12,4.3473]
[1737982912512,1.513e-05,230.14,230.11,26.0558264]
[1737982912805,4.3452,230.24,230.1,4.3476]
[1737982913011,26.0558264,230.25,230.08,1.3503]
[1737982913211,26.0558264,230.29,230.09,26.0558264]
[1737982913708,26.0558264,230.33,230.17,0.03228922]
[1737982913913,26.0558264,230.41,230.21,26.0558264]
[1737982914110,26.0558264,230.45,230.25,26.0558264]
[1737982914511,26.0558264,230.41,230.22,4.6173]
[1737982914706,26.0558264,230.41,230.33,0.02976224]
[1737982915513,5.8303,230.55,230.33,0.02976224]
[1737982915514,26.0558264,230.45,230.33,0.02976224]
[1737982915712,26.0558264,230.45,230.22,4.6173]
[1737982916011,26.0558264,230.41,230.37,0.02935088]
[1737982916213,4.3427,230.37,230.25,4.3448]
[1737982916408,26.0558264,230.37,230.22,4.6173]
[1737982916615,26.0558264,230.37,230.29,0.03088315]
[1737982916914,26.0558264,230.42,230.29,0.03088315]
[1737982917311,26.0558264,230.42,230.27,4.3445]
[1737982917508,26.0558264,230.42,230.33,0.03255671]
[1737982917712,26.0558264,230.38,230.33,0.03255671]
[1737982918909,26.0558264,230.34,230.22,3.124]
[1737982919113,26.0558264,230.34,230.13,2.7689]
[1737982919312,4.3437,230.32,230.19,4.346]
[1737982919513,26.0558264,230.3,230.13,4.4294]
[1737982919810,26.0558264,230.26,230.13,3.0341]
[1737982920307,0.02892905,230.22,230.17,0.03196466]
[1737982920513,0.02892905,230.22,230.2,4.3457]
[1737982920710,26.0558264,230.35,230.17,0.03196466]
[1737982920916,4.3435,230.33,230.18,4.3461]
[1737982921114,26.0558264,230.3,230.16,1.3477]
[1737982921418,26.0558264,230.26,230.13,3.0341]
[1737982921723,26.0558264,230.34,230.14,26.0558264]
[1737982921911,26.0558264,230.34,230.17,0.03080795]
[1737982922109,26.0558264,230.34,230.14,26.0558264]
[1737982922516,26.0558264,230.38,230.23,0.03249225]
[1737982922714,26.0558264,230.38,230.18,26.0558264]
[1737982922715,26.0558264,230.42,230.22,26.0558264]
[1737982922920,3.92,230.64,230.31,26.0558264]
[1737982923215,26.0558264,230.6,230.39,26.0558264]
[1737982923511,26.0558264,230.6,230.41,0.02816462]
[1737982923717,0.4481,230.64,230.5,4.3401]
[1737982923917,0.4481,230.64,230.48,0.02882731]
[1737982924219,0.4481,230.64,230.43,26.0558264]
[1737982924515,26.0558264,230.77,230.57,26.0558264]
[1737982924714,26.0558264,230.77,230.58,1.7428]
[1737982924916,1.9028,230.88,230.65,26.0558264]
[1737982925118,1.9028,230.88,230.65,26.08467746]
[1737982925319,1.9028,230.88,230.73,4.3358]
[1737982925517,1.9028,230.88,230.65,26.0558264]
[1737982925518,3.92,230.96,230.74,0.03229557]
[1737982925719,26.0558264,231.0,230.74,0.03229557]
[1737982925720,26.0558264,231.0,230.78,26.0558264]
[1737982925920,26.0558264,231.09,230.86,26.0558264]
[1737982926218,26.0558264,231.09,230.87,1.37425554]
[1737982926420,26.0558264,231.13,230.94,26.0558264]
[1737982926816,26.0558264,231.13,230.96,0.03051589]
[1737982927018,26.0558264,231.13,230.92,4.3321]
[1737982927219,392.83761867,230.93,230.89,26.0558264]
[1737982927421,392.83761867,230.93,230.85,26.0558264]
[1737982927620,392.83761867,230.93,230.81,26.0558264]
[1737982927921,392.83761867,230.93,230.87,0.02831925]
[1737982928126,390.59621867,230.93,230.89,26.0558264]
[1737982928422,361.547758,230.93,230.89,26.0558264]
[1737982928622,361.547758,230.93,230.87,0.02831925]
[1737982929023,218.57517291,230.93,230.89,52.1116528]
[1737982929222,212.56537291,230.93,230.91,4.3324]
[1737982929421,88.27247803,230.93,230.91,4.3324]
[1737982929622,65.59797803,230.93,230.91,4.3324]
[1737982930025,65.59797803,230.93,230.89,52.1116528]
[1737982930225,58.23867803,230.93,230.89,52.1116528]
[1737982930522,58.23867803,230.93,230.91,4.3323]
[1737982931024,57.25867803,230.93,230.89,52.1116528]
[1737982931219,43.31307803,230.93,230.91,4.3324]
[1737982931521,1.6597,231.21,230.89,78.1674792]
[1737982931725,1.6597,231.21,231.0,26.0558264]
[1737982931927,1.6597,231.21,231.0,29.9558264]
[1737982932127,1.6597,231.21,231.08,0.02927683]
[1737982932426,26.0558264,231.14,231.08,0.02927683]
[1737982932825,26.0558264,231.14,230.92,29.9758264]
[1737982933124,26.0558264,231.1,230.88,26.0558264]
[1737982933325,1.6664,231.09,230.88,26.0558264]
[1737982933621,26.0558264,231.05,230.84,26.0558264]
[1737982933823,26.0558264,230.96,230.75,26.0558264]
[1737982934128,26.0558264,230.87,230.66,26.0558264]
[1737982934323,26.0558264,230.87,230.83,0.02914158]
[1737982934626,0.02903171,230.79,230.74,26.0558264]
[1737982934826,26.0558264,230.95,230.74,26.0558264]
[1737982935425,26.0558264,230.91,230.73,3.92]
[1737982935826,0.03072662,230.84,230.82,3.0809]
[1737982936022,26.0558264,230.87,230.82,3.0809]
[1737982936228,1.8064,230.9,230.82,3.0809]
[1737982936427,0.03120149,230.85,230.82,3.11034187]
[1737982937024,4.36490149,230.85,230.82,3.11034187]
[1737982937224,0.03120149,230.85,230.47,13.04]
[1737982937429,26.0558264,230.83,230.62,29.9758264]
[1737982937626,26.0558264,230.87,230.62,26.0558264]
[1737982937929,26.0558264,230.79,230.6,3.92]
[1737982938129,4.3357,230.75,230.6,3.92]
[1737982938327,26.0558264,230.75,230.52,26.0558264]
[1737982938624,26.0558264,230.87,230.65,0.02909569]
[1737982938625,26.0842427,230.7,230.65,0.02909569]
[1737982938831,0.0284163,230.7,230.65,0.02909569]
[1737982939027,26.0558264,230.74,230.53,26.0558264]
[1737982939230,0.0329057,230.7,230.65,0.03084791]
[1737982939527,26.0887321,230.7,230.65,0.03084791]
[1737982939924,26.0887321,230.7,230.45,26.0558264]
[1737982940225,26.0558264,230.66,230.45,26.0558264]
[1737982940434,26.0558264,230.66,230.37,26.0558264]
[1737982940435,26.0558264,230.58,230.37,26.0558264]
[1737982940932,26.0558264,230.49,230.25,26.0558264]
[1737982941226,26.0558264,230.45,230.25,26.0558264]
[1737982941529,0.02991314,230.37,230.35,0.02957135]
[1737982941731,26.0558264,230.57,230.35,0.02957135]
[1737982942123,26.0558264,230.61,230.38,26.0558264]
[1737982942330,3.92,230.73,230.42,26.0558264]
[1737982942533,2.1161,230.64,230.42,26.0558264]
[1737982942826,1.793,230.72,230.56,26.0558264]
[1737982943024,1.793,230.72,230.46,26.0558264]
[1737982943025,3.7706,230.77,230.6,26.0558264]
[1737982943226,3.7706,230.77,230.54,3.92]
[1737982943227,3.7706,230.77,230.64,26.0558264]
[1737982943731,1.793,230.88,230.68,26.0558264]
[1737982943931,2.1161,230.87,230.72,26.0558264]
[1737982944124,2.1161,230.87,230.76,26.0558264]
[1737982944331,1.6545,230.99,230.8,26.0558264]
[1737982944524,2.16,230.98,230.76,26.0558264]
[1737982944725,6.4914,230.98,230.87,0.03037868]
[1737982944932,0.02955693,230.92,230.87,0.03037868]
[1737982945232,0.02955693,230.92,230.84,26.0558264]
[1737982945427,0.02955693,230.92,230.88,26.0558264]
[1737982945632,0.00188153,230.92,230.87,0.03264526]
[1737982945932,26.0558264,231.0,230.87,0.03264526]
[1737982946333,26.0558264,231.0,230.78,26.0558264]
[1737982946834,0.02903324,230.91,230.87,0.02854388]
[1737982947231,26.0558264,231.08,230.87,26.08437028]
[1737982947429,0.03328331,230.91,230.87,26.08437028]
[1737982947633,0.03328331,230.91,230.87,26.0558264]
[1737982947832,26.0558264,231.08,230.87,26.08419748]
[1737982948027,0.03300127,230.91,230.87,26.08419748]
[1737982948233,26.0558264,231.08,230.83,26.0558264]
[1737982948534,0.02968257,230.91,230.87,0.02757996]
[1737982948733,26.0558264,230.97,230.79,29.9758264]
[1737982948930,0.02941946,230.91,230.87,0.03127265]
[1737982949131,0.02941946,230.91,230.71,29.9758264]
[1737982949333,26.0558264,230.92,230.71,29.9758264]
[1737982949537,4.3338,230.85,230.71,29.9758264]
[1737982949836,26.0558264,230.92,230.71,29.9758264]
[1737982950134,26.0558264,230.84,230.63,26.0558264]
[1737982950330,26.0558264,230.8,230.59,26.0558264]
[1737982951031,4.3357,230.75,230.59,26.0558264]
[1737982951235,26.0558264,230.76,230.56,3.92]
[1737982951437,0.02972519,230.69,230.51,26.0558264]
[1737982951934,26.0558264,230.68,230.46,3.92]
[1737982952135,26.0558264,230.72,230.46,3.92]
[1737982952736,0.03167587,230.61,230.57,0.02903084]
[1737982953035,26.0558264,230.72,230.46,8.2609]
[1737982953236,0.02789411,230.61,230.57,0.02749691]
[1737982953629,26.0558264,230.76,230.55,26.0558264]
[1737982953836,4.3358,230.74,230.57,0.02914558]
[1737982954028,26.0558264,230.76,230.55,26.0558264]
[1737982954233,1.9898,230.73,230.55,26.0558264]
[1737982954640,26.0558264,230.65,230.45,26.0558264]
[1737982955140,0.03276084,230.57,230.53,0.03154402]
[1737982956136,1.9898,230.73,230.56,26.0558264]
[1737982956639,1.9898,230.73,230.53,3.92]
[1737982956836,1.9898,230.73,230.56,26.0558264]
[1737982957034,4.3353,230.77,230.6,26.0558264]
[1737982957236,2.106,230.96,230.72,26.0558264]
[1737982957438,2.106,230.96,230.76,26.0558264]
[1737982957639,0.03105386,230.86,230.8,26.0558264]
[1737982957833,0.03105386,230.86,230.84,0.03192297]
[1737982958741,0.03105386,230.86,230.84,26.08774937]
[1737982959035,2.106,230.96,230.84,26.08774937]
[1737982959542,3.5116,231.1,230.88,26.0558264]
[1737982959741,2.1085,231.09,230.84,26.08774937]
[1737982959941,26.0558264,231.0,230.8,26.0558264]
[1737982960335,26.0558264,230.96,230.75,3.92]
[1737982960542,26.0558264,230.92,230.65,3.92]
[1737982960741,26.0558264,230.88,230.65,3.92]
[1737982961243,5.4835,230.91,230.65,3.92]
[1737982961634,0.02780568,230.8,230.76,0.03046876]
[1737982962038,5.4835,230.91,230.76,26.0558264]
[1737982962245,8.573e-05,230.8,230.78,26.0558264]
[1737982962438,2.1085,231.04,230.88,4.333]
[1737982962637,2.1085,231.04,230.88,30.3888264]
[1737982963147,2.1085,231.04,230.88,26.0558264]
[1737982963542,2.1085,231.04,230.84,26.0558264]
[1737982963750,26.08724486,230.98,230.77,8.2551]
[1737982963950,26.08724486,230.98,230.76,26.0558264]
[1737982964151,4.3328,230.9,230.76,26.0558264]
[1737982964350,26.0558264,230.94,230.76,26.0558264]
[1737982964650,3.4938,230.93,230.76,26.0558264]
[1737982965052,0.03303517,230.87,230.82,0.0333128]
[1737982965251,2.1134,230.89,230.82,0.0333128]
[1737982965451,0.0293986,230.88,230.82,0.0333128]
[1737982965653,0.0293986,230.88,230.67,26.0558264]
[1737982965952,2.1134,230.89,230.67,26.0558264]
[1737982966154,2.1134,230.89,230.78,1.5151]
[1737982966953,0.0314279,230.86,230.81,0.02929836]
[1737982968054,26.0558264,231.05,230.84,26.0558264]
[1737982968348,2.159,231.04,230.88,26.0558264]
[1737982968555,2.159,231.04,230.84,26.0558264]
[1737982968854,4.3315,230.97,230.84,26.0558264]
[1737982969056,26.0558264,231.03,230.84,26.0558264]
[1737982969355,0.02952741,230.93,230.88,0.02935774]
[1737982969751,26.0558264,231.03,230.84,26.0558264]
[1737982969946,0.03120265,230.93,230.88,0.03098443]
[1737982970250,26.0558264,231.03,230.84,26.0558264]
[1737982970449,0.03041494,230.93,230.88,0.02901076]
[1737982970852,26.0558264,230.99,230.78,27.5709264]
[1737982971157,0.03036969,230.93,230.88,0.02932704]
[1737982971358,1.75556969,230.93,230.78,1.5151]
[1737982971655,4.3329,230.9,230.78,1.5151]
[1737982971860,1.7252,230.93,230.78,27.5709264]
[1737982972058,1.6578,231.02,230.82,26.0558264]
[1737982972358,27.7810264,231.03,230.82,26.0558264]
[1737982972560,0.02877475,230.94,230.9,0.03155864]
[1737982972950,4.3309,231.0,230.9,0.03155864]
[1737982972951,1.71,231.02,230.9,0.03155864]
[1737982973152,0.03060299,230.94,230.9,0.03155864]
[1737982973758,0.03060299,230.94,230.9,4.36425864]
[1737982973960,0.03060299,230.94,230.9,0.03155864]
[1737982974559,26.0558264,231.15,230.91,26.0558264]
[1737982974759,26.0558264,231.15,230.96,26.0558264]
[1737982974960,26.0558264,231.15,230.93,26.0558264]
[1737982975158,26.0558264,231.11,230.89,26.0558264]
[1737982975357,26.0558264,231.07,230.85,26.0558264]
[1737982975562,26.0558264,231.03,230.81,26.0558264]
[1737982975762,0.02759413,230.98,230.94,0.03169906]
[1737982975962,0.02759413,230.98,230.78,1.5151]
[1737982976161,1.7336,231.01,230.81,26.0558264]
[1737982976360,1.7336,231.01,230.85,26.0558264]
[1737982976558,4.3313,230.98,230.85,26.0558264]
[1737982976765,1.7336,231.01,230.81,26.0558264]
[1737982977259,1.7336,231.01,230.89,0.02913799]
[1737982977260,0.02842003,230.93,230.89,0.02913799]
[1737982980563,3.7893,231.02,230.89,0.02913799]
[1737982981568,4.3314,230.98,230.89,0.02913799]
[1737982981763,0.02968119,230.98,230.78,1.5151]
[1737982981968,26.0558264,230.9,230.78,1.5151]
[1737982982271,26.0558264,231.0,230.78,1.5151]
[1737982982471,1.7928,230.99,230.81,26.0558264]
[1737982982673,1.7928,230.99,230.85,26.0558264]
[1737982982870,1.7928,230.99,230.78,27.5709264]
[1737982982871,0.03113577,230.92,230.78,27.5709264]
[1737982983073,4.3329,230.89,230.88,0.02961772]
[1737982983271,1.7928,230.99,230.82,26.0558264]
[1737982983476,0.02739852,230.91,230.86,0.02843427]
[1737982984166,0.02739852,230.91,230.86,26.08426067]
[1737982984367,2.1022,231.02,230.9,26.0558264]
[1737982984571,2.1022,231.02,230.86,26.0558264]
[1737982984775,28.1580264,231.02,230.82,26.0558264]
[1737982984978,26.0558264,230.98,230.78,27.5709264]
[1737982985179,3.45,230.97,230.78,27.5709264]
[1737982985572,0.02745908,230.9,230.85,0.02886842]
[1737982985775,26.0558264,230.89,230.78,1.5151]
[1737982985973,26.0558264,230.84,230.78,1.5151]
[1737982986171,3.45,230.83,230.6,26.0558264]
[1737982986371,3.45,230.83,230.61,0.86726507]
[1737982986578,3.45,230.83,230.64,26.0558264]
[1737982986781,26.0558264,230.8,230.61,0.86726507]
[1737982986980,4.3362,230.72,230.61,0.86726507]
[1737982987176,26.0885093,230.76,230.61,0.86726507]
[1737982987475,26.0558264,230.72,230.61,0.86726507]
[1737982987674,26.0558264,230.78,230.61,0.86726507]
[1737982988177,26.0558264,230.82,230.61,26.92309147]
[1737982988381,0.02818371,230.72,230.67,0.03226658]
[1737982988780,3.45,230.83,230.69,26.0558264]
[1737982988978,3.9,231.04,230.79,26.0558264]
[1737982989284,4.39151332,230.97,230.86,0.03074617]
[1737982989577,0.86595081,230.96,230.89,4.3329]
[1737982989782,0.86595081,230.96,230.83,26.0558264]
[1737982989980,0.86595081,230.96,230.87,26.0558264]
[1737982990187,0.86595081,230.96,230.91,26.0558264]
[1737982990386,0.86595081,230.96,230.93,4.3321]
[1737982990587,0.86595081,230.96,230.91,26.0558264]
[1737982990887,0.02868601,230.97,230.92,0.03111506]
[1737982991288,0.02868601,230.97,230.87,26.0558264]
[1737982991491,0.02868601,230.97,230.92,0.02795243]
[1737982991788,1.9675,231.1,230.95,26.0558264]
[1737982992891,1.9675,231.1,230.96,4.3315]
[1737982993090,26.0558264,231.09,230.87,26.0558264]
[1737982993290,0.02935148,231.05,231.0,0.02956539]
[1737982993492,26.0558264,231.09,230.87,26.0558264]
[1737982993687,26.0558264,231.05,230.83,29.9358264]
[1737982993888,1.6883,231.04,230.83,29.9358264]
[1737982994190,4.3308,231.01,230.83,29.9358264]
[1737982994385,26.0558264,231.0,230.73,1.7461]
[1737982994589,26.0558264,230.95,230.75,26.0558264]
[1737982994788,0.02862146,230.89,230.84,0.02933348]
[1737982995791,0.02862146,230.89,230.76,0.86670133]
[1737982996590,4.3345,230.81,230.76,0.86670133]
[1737982996790,0.02862146,230.89,230.76,0.86670133]
[1737982996998,26.0558264,230.87,230.66,26.0558264]
[1737982997194,0.0302578,230.81,230.66,26.0558264]
[1737982997595,4.3347,230.8,230.64,4.3376]
[1737982997896,26.0558264,230.87,230.62,26.0558264]
[1737982998196,0.02913234,230.73,230.69,0.03269981]
[1737982998589,26.0558264,230.84,230.62,30.3937264]
[1737982998796,0.02825549,230.73,230.69,0.02964705]
[1737982999191,1.966,230.78,230.48,4.6805]
[1737982999398,0.03252287,230.73,230.69,0.02782325]
[1737982999598,0.03252287,230.73,230.48,4.6805]
[1737982999803,1.6647,230.74,230.51,26.0558264]
[1737983000097,1.6647,230.74,230.52,0.86760367]
[1737983000496,1.6647,230.74,230.55,26.0558264]
[1737983000692,0.03065603,230.65,230.61,0.02751359]
[1737983001002,1.966,230.78,230.63,26.0558264]
[1737983001299,1.966,230.78,230.56,26.0558264]
[1737983002000,1.966,230.78,230.6,26.0558264]
[1737983002201,0.03084357,230.69,230.65,0.03055709]
[1737983002596,26.0558264,230.87,230.65,0.03055709]
[1737983002799,6.652e-05,230.69,230.68,26.0558264]
[1737983003000,2.0555,230.88,230.75,4.3351]
[1737983003202,1.7345,230.99,230.74,26.0558264]
[1737983003401,2.0555,230.98,230.78,26.0558264]
[1737983003597,4.3311,230.97,230.78,26.0558264]
[1737983003798,2.0555,230.98,230.78,26.0558264]
[1737983004000,0.02857673,230.9,230.86,26.0558264]
[1737983004299,26.0558264,231.13,230.86,26.0558264]
[1737983004502,26.0558264,231.13,230.92,26.0558264]
[1737983004699,1.7505,231.12,230.97,4.3309]
[1737983004906,1.7505,231.12,230.96,26.0558264]
[1737983005505,3.79,231.15,231.0,26.0558264]
[1737983005707,0.03056857,231.06,231.02,0.02926136]
[1737983005911,0.86527645,231.14,231.04,26.0558264]
[1737983006100,0.86527645,231.14,231.09,26.0558264]
[1737983007105,0.89328004,231.14,231.09,26.08864201]
[1737983007300,0.02800359,231.14,231.1,4.3285]
[1737983007506,2.0824,231.26,231.09,26.08864201]
[1737983007806,4.3259,231.25,231.09,26.08864201]
[1737983008108,2.0824,231.26,231.09,26.0558264]
[1737983008308,2.0824,231.26,231.05,26.0558264]
[1737983008607,4.3265,231.22,231.03,3.84]
[1737983008808,0.03248579,231.2,231.15,0.0282027]
[1737983009003,0.03248579,231.2,230.9,0.9807]
[1737983009004,4.3277,231.15,230.96,26.0558264]
[1737983009305,1.771,231.21,231.04,26.0558264]
[1737983009809,26.0558264,231.2,231.0,26.0558264]
[1737983010403,0.0275472,231.12,231.08,0.02833043]
[1737983010803,1.771,231.21,231.08,0.02833043]
[1737983011200,0.0306782,231.12,231.08,0.02833043]
[1737983011601,26.0558264,231.2,231.08,0.02833043]
[1737983011810,0.02792638,231.12,231.08,0.02833043]
[1737983013807,0.02792638,231.12,230.92,26.0558264]
[1737983014309,26.0558264,231.16,230.92,26.0558264]
[1737983014510,26.0558264,231.12,230.89,29.8558264]
[1737983014709,26.0558264,231.08,230.9,0.86617583]
[1737983014905,1.7583,231.07,230.9,0.86617583]
[1737983015109,0.02814053,231.03,230.98,0.02879272]
[1737983015411,0.02814053,231.03,230.9,0.86617583]
[1737983015611,4.3309,230.98,230.9,0.86617583]
[1737983015910,26.0558264,231.0,230.81,29.8558264]
[1737983016205,4.331,230.98,230.81,34.1898264]
[1737983016407,0.03141846,230.93,230.88,0.02983081]
[1737983016604,1.7583,231.07,230.89,26.0558264]
[1737983016912,2.0944,231.11,230.93,26.0558264]
[1737983017115,2.0944,231.11,230.97,26.0558264]
[1737983017611,2.0944,231.11,230.93,26.0558264]
[1737983017912,4.3296,231.05,231.02,0.03005769]
[1737983018107,4.3296,231.05,230.82,2.9687]
[1737983018108,0.03170328,231.06,230.85,26.0558264]
[1737983018305,26.0558264,231.03,230.85,26.0558264]
[1737983018509,4.3306,231.0,230.85,26.0558264]
[1737983018707,1.6508,231.06,230.85,26.0558264]
[1737983019106,26.0558264,231.03,230.85,26.0558264]
[1737983019516,0.03315947,230.98,230.93,0.03110189]
[1737983020015,0.03315947,230.98,230.93,26.08692829]
[1737983020515,2.0944,231.11,230.93,26.08692829]
[1737983020815,2.0944,231.11,230.93,26.0558264]
[1737983021210,4.3281,231.13,230.98,4.3308]
[1737983021412,26.0558264,231.19,230.97,26.0558264]
[1737983021712,0.0307168,231.08,231.03,0.0285065]
[1737983022114,26.0558264,231.19,230.97,26.0558264]
[1737983022309,0.02930951,231.08,231.03,4.36066179]
[1737983022515,0.02930951,231.08,231.03,0.03086179]
[1737983022710,2.1687,231.2,231.01,26.0558264]
[1737983022916,26.0558264,231.26,231.05,26.0558264]
[1737983023108,0.03095525,231.13,231.05,26.0558264]
[1737983023515,5.6991,231.25,231.13,0.03151248]
[1737983023817,26.0558264,231.22,231.01,26.0558264]
[1737983024018,4.35763569,231.21,231.02,4.33]
[1737983024315,26.0558264,231.22,231.01,26.0558264]
[1737983024618,4.3271,231.18,231.01,30.3859264]
[1737983024915,26.0558264,231.22,231.01,26.0558264]
[1737983025116,4.3269,231.2,231.05,4.3295]
[1737983025313,5.6991,231.25,231.01,26.0558264]
[1737983025515,26.0558264,231.44,231.24,26.0558264]
[1737983025715,4.3231,231.4,231.23,4.3261]
[1737983025909,3.8536,231.46,231.24,26.0558264]
[1737983026110,3.8536,231.46,231.28,26.0558264]
[1737983026417,3.8536,231.46,231.34,26.0558264]
[1737983026620,1.7169,231.51,231.35,0.03306205]
[1737983026818,0.03288948,231.39,231.35,0.03306205]
[1737983027013,1.7169,231.51,231.38,26.0558264]
[1737983027318,1.7169,231.51,231.34,26.0558264]
[1737983027519,4.3214,231.49,231.34,26.0558264]
[1737983027718,1.7169,231.51,231.34,26.0558264]
[1737983028115,1.7169,231.51,231.38,30.3790264]
[1737983028318,0.02859869,231.45,231.4,0.02994807]
[1737983029020,0.0016358,231.45,231.42,26.0558264]
[1737983029323,4.3187,231.63,231.42,26.0558264]
[1737983029526,2.089,231.64,231.46,26.0558264]
[1737983029822,26.0558264,231.7,231.44,26.0558264]
[1737983030019,26.0558264,231.66,231.44,26.0558264]
[1737983030626,0.02867452,231.57,231.53,0.02851433]
[1737983031019,4.3197,231.58,231.53,0.02851433]
[1737983031216,0.03198069,231.57,231.53,0.02851433]
[1737983031424,0.03198069,231.57,231.4,26.0558264]
[1737983031621,4.32,231.56,231.4,26.0558264]